[Event "*** Titled Tuesday Blitz"]
[Site "Chess.com"]
[Date "2020.04.28"]
[Round "3"]
[White "theblitzchamp"]
[Black "Bigfish1995"]
[Result "0-1"]
[WhiteElo "2677"]
[BlackElo "3100"]
[TimeControl "180+1"]
[EndTime "10:28:46 PDT"]
[Termination "Bigfish1995 won by resignation"]

1. e4 {[%clk 0:03:00.9]} 1... c5 {[%clk 0:02:58.4]} 2. Nf3 {[%clk 0:03:01.1]}
2... d6 {[%clk 0:02:57.3]} 3. d4 {[%clk 0:03:01.7]} 3... cxd4 {[%clk 0:02:57.2]}
4. Nxd4 {[%clk 0:03:02.6]} 4... Nf6 {[%clk 0:02:57.4]} 5. Nc3 {[%clk 0:03:02.5]}
5... a6 {[%clk 0:02:57.6]} 6. Bc4 {[%clk 0:03:01.3]} 6... e6 {[%clk 0:02:56.4]}
7. Bb3 {[%clk 0:03:01.7]} 7... Nbd7 {[%clk 0:02:54.8]} 8. f4 {[%clk 0:03:01.5]}
8... Nc5 {[%clk 0:02:52.4]} 9. O-O {[%clk 0:03:00.3]} 9... Be7 {[%clk
0:02:47.4]} 10. e5 {[%clk 0:03:00.3]} 10... dxe5 {[%clk 0:02:19.9]} 11. fxe5
{[%clk 0:03:01.2]} 11... Nfd7 {[%clk 0:02:20.3]} 12. Qh5 {[%clk 0:03:01.1]}
12... O-O {[%clk 0:02:10.1]} 13. Bf4 {[%clk 0:03:00.2]} 13... Nxb3 {[%clk
0:02:01]} 14. axb3 {[%clk 0:02:54.8]} 14... f5 {[%clk 0:01:58.9]} 15. Kh1 {[%clk
0:02:27.1]} 15... Nb6 {[%clk 0:01:47.2]} 16. Rad1 {[%clk 0:02:26.3]} 16... Qe8
{[%clk 0:01:45.5]} 17. Qf3 {[%clk 0:02:15.8]} 17... Rb8 {[%clk 0:01:35.6]} 18.
Rd2 {[%clk 0:02:09.9]} 18... Bd7 {[%clk 0:01:31]} 19. Rfd1 {[%clk 0:02:08.2]}
19... Bc6 {[%clk 0:01:14.8]} 20. Qf2 {[%clk 0:01:31]} 20... Bc5 {[%clk
0:01:13.7]} 21. Be3 {[%clk 0:01:31.3]} 21... Nd5 {[%clk 0:00:37.7]} 22. Nxd5
{[%clk 0:01:23.2]} 22... Bxd5 {[%clk 0:00:38.6]} 23. Qe2 {[%clk 0:01:05.5]}
23... f4 {[%clk 0:00:37.5]} 24. Nxe6 {[%clk 0:00:42.6]} 24... f3 {[%clk
0:00:26.2]} 25. Nxf8 {[%clk 0:00:19.5]} 25... fxe2 {[%clk 0:00:25]} 26. Rxe2
{[%clk 0:00:19.8]} 26... Bxe3 {[%clk 0:00:23.4]} 27. Rxe3 {[%clk 0:00:13.5]}
27... Qxf8 {[%clk 0:00:23.5]} 28. c4 {[%clk 0:00:13.9]} 28... Bc6 {[%clk
0:00:23.3]} 29. h3 {[%clk 0:00:13.3]} 29... Qf2 {[%clk 0:00:23.2]} 30. Re2
{[%clk 0:00:09.6]} 30... Qxe2 {[%clk 0:00:23.1]} 0-1

[Event "*** Titled Tuesday Blitz"]
[Site "Chess.com"]
[Date "2020.04.28"]
[Round "3"]
[White "EugeneRougon"]
[Black "enriquetejedor"]
[Result "1-0"]
[WhiteElo "2747"]
[BlackElo "2521"]
[TimeControl "180+1"]
[EndTime "10:28:47 PDT"]
[Termination "EugeneRougon won on time"]

1. e4 {[%clk 0:03:00.9]} 1... c5 {[%clk 0:02:59.1]} 2. Nf3 {[%clk 0:03:01]} 2...
e6 {[%clk 0:02:56.3]} 3. g3 {[%clk 0:03:00.8]} 3... d5 {[%clk 0:02:47.2]} 4.
exd5 {[%clk 0:03:00.3]} 4... exd5 {[%clk 0:02:48.1]} 5. d4 {[%clk 0:03:00.8]}
5... Nc6 {[%clk 0:02:47.2]} 6. Bg2 {[%clk 0:03:00.9]} 6... Nf6 {[%clk
0:02:40.8]} 7. O-O {[%clk 0:03:00.8]} 7... cxd4 {[%clk 0:02:38.8]} 8. Nxd4
{[%clk 0:02:56.6]} 8... Be7 {[%clk 0:02:38.1]} 9. Nc3 {[%clk 0:02:41.7]} 9...
O-O {[%clk 0:02:37.2]} 10. h3 {[%clk 0:02:41.5]} 10... h6 {[%clk 0:02:33.2]} 11.
a3 {[%clk 0:02:40.4]} 11... Re8 {[%clk 0:02:24.9]} 12. Bf4 {[%clk 0:02:34.9]}
12... a6 {[%clk 0:01:05.2]} 13. Qd2 {[%clk 0:02:34.7]} 13... Bc5 {[%clk
0:00:58.4]} 14. Nb3 {[%clk 0:02:30.3]} 14... Bf8 {[%clk 0:00:55]} 15. Rad1
{[%clk 0:02:23.8]} 15... Be6 {[%clk 0:00:54.1]} 16. Kh2 {[%clk 0:02:14.5]} 16...
g5 {[%clk 0:00:37.3]} 17. Be3 {[%clk 0:02:03.4]} 17... Ne7 {[%clk 0:00:25.9]}
18. Nd4 {[%clk 0:01:51.3]} 18... Rc8 {[%clk 0:00:17]} 19. f4 {[%clk 0:01:47.8]}
19... gxf4 {[%clk 0:00:08.6]} 20. Bxf4 {[%clk 0:01:47.1]} 20... Ng6 {[%clk
0:00:03.9]} 21. Bxh6 {[%clk 0:01:45.2]} 21... Bd6 {[%clk 0:00:03.6]} 22. Bg5
{[%clk 0:01:39.1]} 22... Bxg3+ {[%clk 0:00:03.5]} 23. Kxg3 {[%clk 0:01:34.4]}
23... Nh5+ {[%clk 0:00:02.9]} 24. Kh2 {[%clk 0:01:24]} 24... Qd6+ {[%clk
0:00:03.8]} 25. Kg1 {[%clk 0:01:24.2]} 25... Rc4 {[%clk 0:00:02]} 26. Nce2
{[%clk 0:01:16.3]} 26... Ng3 {[%clk 0:00:01.5]} 27. Nxg3 {[%clk 0:01:14.2]}
27... Qxg3 {[%clk 0:00:02.4]} 28. Rf3 {[%clk 0:01:05.7]} 28... Qe5 {[%clk
0:00:02.1]} 29. Bf6 {[%clk 0:01:03.5]} 29... Qh5 {[%clk 0:00:01.3]} 30. Rg3
{[%clk 0:00:58.1]} 30... Qh7 {[%clk 0:00:01.3]} 31. Nxe6 {[%clk 0:00:51]} 31...
Rxe6 {[%clk 0:00:02.2]} 32. Bxd5 {[%clk 0:00:48.6]} 32... Rf4 {[%clk 0:00:01.7]}
33. Qxf4 {[%clk 0:00:46.5]} 33... Re1+ {[%clk 0:00:01.3]} 34. Rxe1 {[%clk
0:00:46.3]} 1-0

[Event "*** Titled Tuesday Blitz"]
[Site "Chess.com"]
[Date "2020.04.28"]
[Round "3"]
[White "Semen_Khanin"]
[Black "GMJustin"]
[Result "1-0"]
[WhiteElo "2715"]
[BlackElo "2427"]
[TimeControl "180+1"]
[EndTime "10:28:47 PDT"]
[Termination "Semen_Khanin won on time"]

1. e4 {[%clk 0:03:00.9]} 1... e5 {[%clk 0:02:55.8]} 2. Nf3 {[%clk 0:03:00.4]}
2... Nc6 {[%clk 0:02:55.7]} 3. Bb5 {[%clk 0:03:00.1]} 3... g6 {[%clk 0:02:46]}
4. d4 {[%clk 0:02:55.7]} 4... exd4 {[%clk 0:02:44.8]} 5. Nxd4 {[%clk 0:02:55.5]}
5... Bg7 {[%clk 0:02:40.6]} 6. Be3 {[%clk 0:02:48]} 6... Nge7 {[%clk 0:02:39.2]}
7. Nc3 {[%clk 0:02:45.3]} 7... O-O {[%clk 0:02:38.3]} 8. h4 {[%clk 0:02:45.6]}
8... d5 {[%clk 0:02:18.6]} 9. h5 {[%clk 0:02:07]} 9... dxe4 {[%clk 0:02:04.7]}
10. Bxc6 {[%clk 0:02:07.2]} 10... Nxc6 {[%clk 0:01:50.5]} 11. Nxc6 {[%clk
0:02:04.6]} 11... Qxd1+ {[%clk 0:01:23.9]} 12. Rxd1 {[%clk 0:02:04.3]} 12...
bxc6 {[%clk 0:01:18.1]} 13. h6 {[%clk 0:01:53.3]} 13... Bxc3+ {[%clk 0:01:04.9]}
14. bxc3 {[%clk 0:01:53.3]} 14... Be6 {[%clk 0:01:04.2]} 15. Rd4 {[%clk
0:01:33.1]} 15... Bxa2 {[%clk 0:00:54.1]} 16. Ra4 {[%clk 0:01:30.9]} 16... Bd5
{[%clk 0:00:44.1]} 17. Bxa7 {[%clk 0:01:27.5]} 17... e3 {[%clk 0:00:34.8]} 18.
f3 {[%clk 0:01:27.2]} 18... f5 {[%clk 0:00:32.4]} 19. Ke2 {[%clk 0:01:03.9]}
19... f4 {[%clk 0:00:31.8]} 20. Rha1 {[%clk 0:01:04.3]} 20... g5 {[%clk
0:00:20.6]} 21. Bd4 {[%clk 0:01:03.2]} 21... Rxa4 {[%clk 0:00:18.1]} 22. Rxa4
{[%clk 0:01:03.4]} 22... Kf7 {[%clk 0:00:16.4]} 23. Ra7 {[%clk 0:01:01.1]} 23...
Bc4+ {[%clk 0:00:16.4]} 24. Kd1 {[%clk 0:00:46.4]} 24... Rb8 {[%clk 0:00:15.9]}
25. Rxc7+ {[%clk 0:00:46.3]} 25... Ke6 {[%clk 0:00:15.6]} 26. Rxc6+ {[%clk
0:00:46]} 26... Kd7 {[%clk 0:00:13.8]} 27. Rxc4 {[%clk 0:00:46]} 27... Rb1+
{[%clk 0:00:09.7]} 28. Ke2 {[%clk 0:00:45.8]} 28... Rg1 {[%clk 0:00:09.7]} 29.
Rc5 {[%clk 0:00:39.3]} 29... Rxg2+ {[%clk 0:00:09]} 30. Kd3 {[%clk 0:00:39.4]}
30... Rd2+ {[%clk 0:00:07.3]} 31. Kc4 {[%clk 0:00:39.5]} 31... g4 {[%clk
0:00:02.6]} 32. fxg4 {[%clk 0:00:37]} 1-0

[Event "*** Titled Tuesday Blitz"]
[Site "Chess.com"]
[Date "2020.04.28"]
[Round "3"]
[White "GOGIEFF"]
[Black "anon132639"]
[Result "1-0"]
[WhiteElo "2981"]
[BlackElo "2665"]
[TimeControl "180+1"]
[EndTime "10:28:49 PDT"]
[Termination "GOGIEFF won on time"]

1. d4 {[%clk 0:03:00.9]} 1... Nf6 {[%clk 0:03:00.5]} 2. c4 {[%clk 0:02:59.5]}
2... g6 {[%clk 0:03:01.1]} 3. Nc3 {[%clk 0:02:59.3]} 3... Bg7 {[%clk 0:03:01.8]}
4. e4 {[%clk 0:02:59.1]} 4... O-O {[%clk 0:03:02.5]} 5. Bg5 {[%clk 0:02:59.1]}
5... d6 {[%clk 0:03:02.6]} 6. Qd2 {[%clk 0:02:59.3]} 6... Na6 {[%clk 0:02:57.6]}
7. Bd3 {[%clk 0:02:53.3]} 7... c5 {[%clk 0:02:42]} 8. d5 {[%clk 0:02:51.4]} 8...
Nc7 {[%clk 0:02:41.8]} 9. Nge2 {[%clk 0:02:48.6]} 9... a6 {[%clk 0:02:41.6]} 10.
a4 {[%clk 0:02:47.5]} 10... Rb8 {[%clk 0:02:40.9]} 11. O-O {[%clk 0:02:36.4]}
11... Bd7 {[%clk 0:02:36.5]} 12. a5 {[%clk 0:02:23.5]} 12... b5 {[%clk
0:02:36.4]} 13. axb6 {[%clk 0:02:24]} 13... Rxb6 {[%clk 0:02:36.7]} 14. f4
{[%clk 0:02:23.6]} 14... Qb8 {[%clk 0:02:03.6]} 15. Ra2 {[%clk 0:02:21.5]} 15...
Re8 {[%clk 0:00:55.7]} 16. h3 {[%clk 0:02:17.5]} 16... Bc8 {[%clk 0:00:47.7]}
17. Ng3 {[%clk 0:01:59.1]} 17... Nd7 {[%clk 0:00:38.2]} 18. Kh1 {[%clk
0:01:53.5]} 18... Rb4 {[%clk 0:00:32.6]} 19. e5 {[%clk 0:01:44.9]} 19... f6
{[%clk 0:00:18.2]} 20. exf6 {[%clk 0:01:16.8]} 20... exf6 {[%clk 0:00:19.1]} 21.
Bh4 {[%clk 0:01:17.3]} 21... f5 {[%clk 0:00:19.7]} 22. Bxf5 {[%clk 0:01:10.9]}
22... gxf5 {[%clk 0:00:18.4]} 23. Nxf5 {[%clk 0:01:11.8]} 23... Bf8 {[%clk
0:00:10.4]} 24. b3 {[%clk 0:00:49.4]} 24... Rxb3 {[%clk 0:00:07.4]} 25. Rf3
{[%clk 0:00:49.4]} 25... Kh8 {[%clk 0:00:06.9]} 26. Rg3 {[%clk 0:00:46.3]} 26...
a5 {[%clk 0:00:05.4]} 27. Qd1 {[%clk 0:00:30.5]} 27... a4 {[%clk 0:00:01.8]} 28.
Qg4 {[%clk 0:00:28.2]} 28... Bh6 {[%clk 0:00:01.5]} 29. Nxh6 {[%clk 0:00:26.7]}
1-0

[Event "*** Titled Tuesday Blitz"]
[Site "Chess.com"]
[Date "2020.04.28"]
[Round "3"]
[White "kuba2006"]
[Black "Firegrizzly"]
[Result "0-1"]
[WhiteElo "2411"]
[BlackElo "2645"]
[TimeControl "180+1"]
[EndTime "10:28:50 PDT"]
[Termination "Firegrizzly won on time"]

1. e4 {[%clk 0:03:00.9]} 1... e6 {[%clk 0:03:00.9]} 2. d4 {[%clk 0:03:00.1]}
2... d5 {[%clk 0:03:01.8]} 3. e5 {[%clk 0:02:59.4]} 3... c5 {[%clk 0:03:01.1]}
4. c3 {[%clk 0:02:59.9]} 4... Nc6 {[%clk 0:03:00.9]} 5. Nf3 {[%clk 0:03:00.4]}
5... Bd7 {[%clk 0:03:01.3]} 6. Bd3 {[%clk 0:03:00.4]} 6... Nge7 {[%clk
0:02:57.7]} 7. O-O {[%clk 0:02:52.3]} 7... Ng6 {[%clk 0:02:56.9]} 8. Re1 {[%clk
0:02:41.5]} 8... Be7 {[%clk 0:02:56.2]} 9. dxc5 {[%clk 0:02:41.1]} 9... Bxc5
{[%clk 0:02:54.9]} 10. b4 {[%clk 0:02:41.7]} 10... Be7 {[%clk 0:02:54.3]} 11.
Bb2 {[%clk 0:02:30.3]} 11... O-O {[%clk 0:02:51]} 12. a3 {[%clk 0:02:29.6]}
12... a5 {[%clk 0:02:49.7]} 13. b5 {[%clk 0:02:28.9]} 13... Na7 {[%clk
0:02:49.7]} 14. a4 {[%clk 0:02:27.3]} 14... Nc8 {[%clk 0:02:49.5]} 15. Nbd2
{[%clk 0:02:25.3]} 15... Nb6 {[%clk 0:02:49.3]} 16. c4 {[%clk 0:02:25.1]} 16...
Bb4 {[%clk 0:02:45.6]} 17. Ba3 {[%clk 0:02:14.2]} 17... Rc8 {[%clk 0:02:30.5]}
18. Bxb4 {[%clk 0:02:02.5]} 18... axb4 {[%clk 0:02:31.4]} 19. Qb3 {[%clk
0:01:57.5]} 19... Nf4 {[%clk 0:02:30.2]} 20. Bf1 {[%clk 0:01:51]} 20... dxc4
{[%clk 0:02:28.2]} 21. Nxc4 {[%clk 0:01:49.9]} 21... Nbd5 {[%clk 0:02:21.6]} 22.
g3 {[%clk 0:01:40.4]} 22... Ng6 {[%clk 0:02:19.7]} 23. Rad1 {[%clk 0:01:35.4]}
23... Qe7 {[%clk 0:02:16.3]} 24. Rd3 {[%clk 0:01:16.1]} 24... Rc5 {[%clk
0:02:13.9]} 25. Red1 {[%clk 0:01:13.7]} 25... Rfc8 {[%clk 0:02:09.5]} 26. Nd6
{[%clk 0:01:13.6]} 26... R8c7 {[%clk 0:02:01.4]} 27. b6 {[%clk 0:01:07.5]} 27...
R7c6 {[%clk 0:01:56.1]} 28. Nxb7 {[%clk 0:01:01.2]} 28... Rc3 {[%clk 0:01:55.9]}
29. Rxc3 {[%clk 0:00:59.6]} 29... Rxc3 {[%clk 0:01:54.8]} 30. Qb2 {[%clk
0:00:53.6]} 30... Rxf3 {[%clk 0:01:53.5]} 31. Bg2 {[%clk 0:00:32.5]} 31... Rc3
{[%clk 0:01:48.2]} 32. Bxd5 {[%clk 0:00:32.4]} 32... exd5 {[%clk 0:01:45.9]} 33.
Nd6 {[%clk 0:00:31.3]} 33... Nxe5 {[%clk 0:01:35.2]} 34. Qxb4 {[%clk 0:00:27.2]}
34... Rc4 {[%clk 0:01:30.2]} 35. Nxc4 {[%clk 0:00:04.7]} 35... Qxb4 {[%clk
0:01:28.3]} 36. Nxe5 {[%clk 0:00:05.6]} 36... Bxa4 {[%clk 0:01:25.4]} 37. Rc1
{[%clk 0:00:05]} 37... h5 {[%clk 0:01:20.4]} 38. Nc6 {[%clk 0:00:03.5]} 38...
Qxb6 {[%clk 0:01:18.2]} 39. Ne7+ {[%clk 0:00:03.1]} 39... Kh7 {[%clk 0:01:18.5]}
40. Nxd5 {[%clk 0:00:02.8]} 40... Qb2 {[%clk 0:01:15.2]} 41. Rf1 {[%clk
0:00:02.4]} 41... Bc6 {[%clk 0:01:14.3]} 42. Ne3 {[%clk 0:00:01.8]} 42... Qe5
{[%clk 0:01:12.2]} 43. Rd1 {[%clk 0:00:01.8]} 43... Qe4 {[%clk 0:01:12.1]} 44.
Kf1 {[%clk 0:00:02]} 44... Qf3 {[%clk 0:01:11]} 0-1

[Event "*** Titled Tuesday Blitz"]
[Site "Chess.com"]
[Date "2020.04.28"]
[Round "3"]
[White "verdest"]
[Black "davigator"]
[Result "1/2-1/2"]
[WhiteElo "2580"]
[BlackElo "2392"]
[TimeControl "180+1"]
[EndTime "10:28:50 PDT"]
[Termination "Game drawn by repetition"]

1. d4 {[%clk 0:03:00.9]} 1... Nf6 {[%clk 0:02:58.7]} 2. c4 {[%clk 0:03:00.7]}
2... e6 {[%clk 0:02:58.8]} 3. Nf3 {[%clk 0:02:59.6]} 3... Bb4+ {[%clk
0:02:58.1]} 4. Bd2 {[%clk 0:02:59.4]} 4... a5 {[%clk 0:02:58.1]} 5. e3 {[%clk
0:02:58]} 5... O-O {[%clk 0:02:55.9]} 6. Bd3 {[%clk 0:02:57.8]} 6... d5 {[%clk
0:02:56.3]} 7. O-O {[%clk 0:02:54.6]} 7... b6 {[%clk 0:02:56.2]} 8. Nc3 {[%clk
0:02:54.2]} 8... Bb7 {[%clk 0:02:56]} 9. cxd5 {[%clk 0:02:54.1]} 9... exd5
{[%clk 0:02:55.7]} 10. Ne5 {[%clk 0:02:53.9]} 10... Nbd7 {[%clk 0:02:50]} 11. a3
{[%clk 0:02:38]} 11... Bxc3 {[%clk 0:02:42.5]} 12. Bxc3 {[%clk 0:02:37.1]} 12...
Ne4 {[%clk 0:02:39.5]} 13. Nxd7 {[%clk 0:02:00.8]} 13... Qxd7 {[%clk 0:02:37.6]}
14. f3 {[%clk 0:02:00.3]} 14... Nf6 {[%clk 0:02:29.4]} 15. Qe1 {[%clk
0:01:54.2]} 15... Rfe8 {[%clk 0:02:26.6]} 16. Qf2 {[%clk 0:01:53.8]} 16... Qd6
{[%clk 0:02:22.1]} 17. Rae1 {[%clk 0:01:52.6]} 17... c5 {[%clk 0:02:19.9]} 18.
dxc5 {[%clk 0:01:49.1]} 18... bxc5 {[%clk 0:02:18.8]} 19. Qg3 {[%clk 0:01:49]}
19... Qb6 {[%clk 0:02:07.4]} 20. Kh1 {[%clk 0:01:44.3]} 20... Ba6 {[%clk
0:01:50.3]} 21. Bxa6 {[%clk 0:01:35.1]} 21... Qxa6 {[%clk 0:01:50.1]} 22. Qf4
{[%clk 0:01:27.3]} 22... Rad8 {[%clk 0:01:45.4]} 23. Bxf6 {[%clk 0:01:15.6]}
23... Qxf6 {[%clk 0:01:44.8]} 24. Qxf6 {[%clk 0:01:15.9]} 24... gxf6 {[%clk
0:01:45.4]} 25. Kg1 {[%clk 0:01:16.8]} 25... Rb8 {[%clk 0:01:44]} 26. Rf2 {[%clk
0:01:06.7]} 26... d4 {[%clk 0:01:43.4]} 27. e4 {[%clk 0:01:03.9]} 27... c4
{[%clk 0:01:36.3]} 28. Rc2 {[%clk 0:00:59.4]} 28... Rec8 {[%clk 0:01:21.9]} 29.
Kf2 {[%clk 0:00:53.6]} 29... d3 {[%clk 0:01:22]} 30. Rd2 {[%clk 0:00:52.6]}
30... Rb3 {[%clk 0:01:21.8]} 31. Rc1 {[%clk 0:00:47.5]} 31... Rcb8 {[%clk
0:01:17.7]} 32. Rxc4 {[%clk 0:00:30.8]} 32... Rxb2 {[%clk 0:01:17.3]} 33. Ke3
{[%clk 0:00:26.8]} 33... Rxd2 {[%clk 0:01:16.4]} 34. Kxd2 {[%clk 0:00:27.7]}
34... Rb2+ {[%clk 0:01:13.9]} 35. Kxd3 {[%clk 0:00:28]} 35... Rxg2 {[%clk
0:01:14.6]} 36. Ra4 {[%clk 0:00:25]} 36... Rxh2 {[%clk 0:01:14.2]} 37. Rxa5
{[%clk 0:00:25]} 37... h5 {[%clk 0:01:12.6]} 38. a4 {[%clk 0:00:24.8]} 38... Kg7
{[%clk 0:01:12.5]} 39. Rf5 {[%clk 0:00:20.4]} 39... Kg6 {[%clk 0:01:07.7]} 40.
a5 {[%clk 0:00:20.5]} 40... Ra2 {[%clk 0:01:07.7]} 41. Ke3 {[%clk 0:00:20.4]}
41... h4 {[%clk 0:01:07.7]} 42. Rf4 {[%clk 0:00:19.3]} 42... h3 {[%clk
0:01:06.9]} 43. Rh4 {[%clk 0:00:19.1]} 43... h2 {[%clk 0:01:06.9]} 44. Kf4
{[%clk 0:00:19.4]} 44... Kg7 {[%clk 0:01:02.1]} 45. a6 {[%clk 0:00:18.9]} 45...
Rxa6 {[%clk 0:01:01.7]} 46. Rxh2 {[%clk 0:00:18.9]} 46... Ra5 {[%clk 0:01:01.7]}
47. Rg2+ {[%clk 0:00:18.9]} 47... Kf8 {[%clk 0:01:01.7]} 48. Rd2 {[%clk
0:00:18.7]} 48... Kg7 {[%clk 0:01:01.8]} 49. Rg2+ {[%clk 0:00:18.6]} 49... Kf8
{[%clk 0:01:02.1]} 50. Rd2 {[%clk 0:00:19.1]} 50... Kg7 {[%clk 0:01:01.8]} 51.
Rg2+ {[%clk 0:00:19.6]} 1/2-1/2

[Event "*** Titled Tuesday Blitz"]
[Site "Chess.com"]
[Date "2020.04.28"]
[Round "3"]
[White "SanQui14"]
[Black "PawnEatingZombie"]
[Result "1-0"]
[WhiteElo "2327"]
[BlackElo "2108"]
[TimeControl "180+1"]
[EndTime "10:28:50 PDT"]
[Termination "SanQui14 won on time"]

1. d4 {[%clk 0:03:00.9]} 1... d5 {[%clk 0:02:59.3]} 2. Bf4 {[%clk 0:03:01]} 2...
e6 {[%clk 0:02:58.9]} 3. e3 {[%clk 0:03:00.2]} 3... Nf6 {[%clk 0:02:58.7]} 4. c3
{[%clk 0:03:00.5]} 4... Bd6 {[%clk 0:02:59]} 5. Bxd6 {[%clk 0:02:56.6]} 5...
Qxd6 {[%clk 0:02:57.4]} 6. Nf3 {[%clk 0:02:57.5]} 6... c5 {[%clk 0:02:55.4]} 7.
Bd3 {[%clk 0:02:57.8]} 7... Nbd7 {[%clk 0:02:54.9]} 8. O-O {[%clk 0:02:57.9]}
8... b6 {[%clk 0:02:54.9]} 9. Nbd2 {[%clk 0:02:56.8]} 9... Bb7 {[%clk
0:02:54.8]} 10. Re1 {[%clk 0:02:56.6]} 10... O-O {[%clk 0:02:48.5]} 11. e4
{[%clk 0:02:54.6]} 11... dxe4 {[%clk 0:02:47.3]} 12. Nxe4 {[%clk 0:02:54.4]}
12... Nxe4 {[%clk 0:02:46.5]} 13. Bxe4 {[%clk 0:02:55.3]} 13... Bxe4 {[%clk
0:02:46.2]} 14. Rxe4 {[%clk 0:02:56.2]} 14... Nf6 {[%clk 0:02:46]} 15. Re1
{[%clk 0:02:55.7]} 15... Rfd8 {[%clk 0:02:42.3]} 16. dxc5 {[%clk 0:02:54.8]}
16... Qxc5 {[%clk 0:02:40.3]} 17. Qe2 {[%clk 0:02:55.1]} 17... a5 {[%clk
0:02:37.9]} 18. h3 {[%clk 0:02:55]} 18... a4 {[%clk 0:02:33.5]} 19. a3 {[%clk
0:02:54.1]} 19... Rd5 {[%clk 0:02:25.5]} 20. Rad1 {[%clk 0:02:53.3]} 20... Rad8
{[%clk 0:02:25.1]} 21. Rxd5 {[%clk 0:02:53.2]} 21... Qxd5 {[%clk 0:02:19.9]} 22.
Nd4 {[%clk 0:02:50.4]} 22... h6 {[%clk 0:02:07.2]} 23. Qe5 {[%clk 0:02:48.7]}
23... Qxe5 {[%clk 0:01:30.6]} 24. Rxe5 {[%clk 0:02:49.6]} 24... Rd5 {[%clk
0:01:30.7]} 25. Rxd5 {[%clk 0:02:20.3]} 25... Nxd5 {[%clk 0:01:31.6]} 26. c4
{[%clk 0:02:20.2]} 26... Nf4 {[%clk 0:01:31.4]} 27. b3 {[%clk 0:01:59.8]} 27...
axb3 {[%clk 0:01:28.5]} 28. Nxb3 {[%clk 0:02:00.7]} 28... Kf8 {[%clk 0:01:18.4]}
29. c5 {[%clk 0:01:56.9]} 29... bxc5 {[%clk 0:01:17.2]} 30. Nxc5 {[%clk
0:01:57.8]} 30... Ke7 {[%clk 0:01:15.1]} 31. h4 {[%clk 0:01:57.8]} 31... Kd6
{[%clk 0:01:12.7]} 32. Ne4+ {[%clk 0:01:55.4]} 32... Kc6 {[%clk 0:01:00]} 33. g3
{[%clk 0:01:54.8]} 33... Nd5 {[%clk 0:00:51.6]} 34. Kg2 {[%clk 0:01:54.8]} 34...
f5 {[%clk 0:00:48.6]} 35. Nd2 {[%clk 0:01:52]} 35... Kb5 {[%clk 0:00:46]} 36.
Nf3 {[%clk 0:01:47.4]} 36... Ka4 {[%clk 0:00:40.9]} 37. Nd4 {[%clk 0:01:47.2]}
37... Nc7 {[%clk 0:00:41]} 38. Kf3 {[%clk 0:01:42.3]} 38... g5 {[%clk
0:00:37.5]} 39. h5 {[%clk 0:01:34.8]} 39... Kxa3 {[%clk 0:00:36.3]} 40. Nc6
{[%clk 0:01:28.8]} 40... Kb3 {[%clk 0:00:23.7]} 41. Nd8 {[%clk 0:01:28.7]} 41...
e5 {[%clk 0:00:20.7]} 42. Nf7 {[%clk 0:01:28.6]} 42... e4+ {[%clk 0:00:12.4]}
43. Kg2 {[%clk 0:01:27.8]} 43... Kc4 {[%clk 0:00:11.7]} 44. Nxh6 {[%clk
0:01:28]} 44... f4 {[%clk 0:00:10.2]} 45. Nf7 {[%clk 0:01:23.1]} 45... Ne6
{[%clk 0:00:06.1]} 46. h6 {[%clk 0:01:20.3]} 46... Nf8 {[%clk 0:00:04.7]} 47.
Nxg5 {[%clk 0:01:20.1]} 47... fxg3 {[%clk 0:00:05.1]} 48. Kxg3 {[%clk
0:01:19.9]} 48... Kd4 {[%clk 0:00:05]} 49. Ne6+ {[%clk 0:01:10.3]} 49... Nxe6
{[%clk 0:00:03.6]} 50. h7 {[%clk 0:01:10.4]} 1-0

[Event "*** Titled Tuesday Blitz"]
[Site "Chess.com"]
[Date "2020.04.28"]
[Round "3"]
[White "vugarrasulov"]
[Black "gurelediz"]
[Result "0-1"]
[WhiteElo "2758"]
[BlackElo "2609"]
[TimeControl "180+1"]
[EndTime "10:28:51 PDT"]
[Termination "gurelediz won by checkmate"]

1. d4 {[%clk 0:03:00.9]} 1... Nf6 {[%clk 0:02:58.5]} 2. Nf3 {[%clk 0:03:01.1]}
2... e6 {[%clk 0:02:56.8]} 3. g3 {[%clk 0:03:01]} 3... c5 {[%clk 0:02:55.1]} 4.
Bg2 {[%clk 0:03:00.6]} 4... d5 {[%clk 0:02:54.1]} 5. O-O {[%clk 0:03:00.3]} 5...
Nc6 {[%clk 0:02:51.3]} 6. c4 {[%clk 0:03:00.4]} 6... dxc4 {[%clk 0:02:48.2]} 7.
Qa4 {[%clk 0:03:00.2]} 7... Bd7 {[%clk 0:02:37.9]} 8. dxc5 {[%clk 0:02:59.6]}
8... Bxc5 {[%clk 0:02:32.3]} 9. Qxc4 {[%clk 0:02:59.2]} 9... Bb6 {[%clk
0:02:31.9]} 10. Nc3 {[%clk 0:02:57.4]} 10... O-O {[%clk 0:02:30.5]} 11. Qh4
{[%clk 0:02:52.7]} 11... h6 {[%clk 0:02:25.9]} 12. Bxh6 {[%clk 0:02:44.1]} 12...
gxh6 {[%clk 0:02:21.5]} 13. Qxh6 {[%clk 0:02:45]} 13... Ng4 {[%clk 0:02:00.1]}
14. Qh5 {[%clk 0:02:39.1]} 14... f5 {[%clk 0:01:59.7]} 15. h3 {[%clk 0:02:20.3]}
15... Nf6 {[%clk 0:01:54.9]} 16. Qg6+ {[%clk 0:02:16.9]} 16... Kh8 {[%clk
0:01:55]} 17. Qh6+ {[%clk 0:02:09.4]} 17... Kg8 {[%clk 0:01:48.8]} 18. Qg5+
{[%clk 0:01:38]} 18... Kh8 {[%clk 0:01:28]} 19. Nh4 {[%clk 0:01:37.6]} 19... Be8
{[%clk 0:01:27.5]} 20. e4 {[%clk 0:01:28.9]} 20... Nh7 {[%clk 0:01:13.5]} 21.
Qf4 {[%clk 0:01:14.8]} 21... e5 {[%clk 0:01:03.5]} 22. Qh6 {[%clk 0:01:03]}
22... f4 {[%clk 0:01:01.1]} 23. Nd5 {[%clk 0:00:42]} 23... Qg5 {[%clk 0:00:37]}
24. Qxg5 {[%clk 0:00:30.2]} 24... Nxg5 {[%clk 0:00:36.4]} 25. gxf4 {[%clk
0:00:20.1]} 25... exf4 {[%clk 0:00:33.2]} 26. Kh2 {[%clk 0:00:20.7]} 26... f3
{[%clk 0:00:23.8]} 27. Bh1 {[%clk 0:00:20.8]} 27... Bd4 {[%clk 0:00:20]} 28. Nc7
{[%clk 0:00:15.6]} 28... Be5+ {[%clk 0:00:19.4]} 29. Kg1 {[%clk 0:00:15]} 29...
Nxh3# {[%clk 0:00:19.1]} 0-1